Cogmind - Beta 17 @@@ ROGUE MODE // 2026.07.07 @ 20:45:05 Player: hellbent Result: Smashed by cave-in Performance ------------- Evolutions (0) 0 Regions Visited (1) 200 Robots Destroyed (20) 100 Value Destroyed (349) 349 Prototype IDs (5) 100 Alien Tech Used (0) 0 Bonus (0) 0 TOTAL SCORE: 749 Bonus ------- None Cogmind --------- Core Integrity 0/250 Matter 300/300 Energy 219/250 System Corruption 7% Temperature Cool (0) Movement Rolling (145) Ox3 Location -10/Materials Parts ------- > --- POWER (1) -------- Ion Engine > --- PROPULSION (2) --- Compact Wheel > --- UTILITY (2) ------ Heat Sink High-capacity Storage Unit > --- WEAPON (2) ------- Beam Cannon > --- INVENTORY (20) --- Ion Engine Backup Power I Wheel Wheel Compact Wheel Compact Wheel Compact Wheel High-capacity Battery (250) Medium Matter Pod (100) Sensor Array Sensor Array Signal Interpreter Signal Interpreter Seismic Detector ECM Suite ECM Suite Light Armor Plating Medium Laser Assault Rifle Peak State ------------ > --- POWER ------------ Light Nuclear Core > --- PROPULSION ------- Light Treads Compact Wheel > --- UTILITY ---------- Heat Sink High-capacity Storage Unit > --- WEAPON ----------- Particle Gun Assault Rifle > --- INVENTORY -------- Ion Engine Ion Engine Wheel Wheel Wheel Compact Wheel Compact Wheel Compact Wheel High-capacity Battery Medium Matter Pod Sensor Array Sensor Array Signal Interpreter Signal Interpreter Seismic Detector ECM Suite ECM Suite Light Armor Plating Medium Laser Medium Laser [Rating: 12] Favorites ----------- Power Ion Engine Engine Ion Engine Power Core Light Nuclear Core Propulsion Light Treads Treads Light Treads Wheel Compact Wheel Utility Heat Sink Device Heat Sink Storage High-capacity Storage Unit Weapon Assault Rifle Energy Gun Particle Gun Energy Cannon Beam Cannon Ballistic Gun Assault Rifle Special Weapon Mining Laser Build | -11 -10 ------- Run | Yrd Mat Slots Evolved . | . . Power . | . . Propulsion . | . . Utility . | . . Weapon . | . . Parts Attached 20 | 7 13 Power 4 | 2 2 Engine 3 | 2 1 Core 1 | . 1 Reactor . | . . Propulsion 5 | 2 3 Treads 2 | . 2 Leg . | . . Wheel 3 | 2 1 Hover . | . . Flight . | . . Utility 5 | 1 4 Device 3 | . 3 Storage 2 | 1 1 Processor . | . . Hackware . | . . Protection . | . . Artifact . | . . Weapon 6 | 2 4 Energy Gun 1 | . 1 Energy Cannon 1 | . 1 Ballistic Gun 3 | 2 1 Ballistic Cannon . | . . Launcher . | . . Special Weapon 1 | . 1 Impact Weapon . | . . Slashing Weapon . | . . Piercing Weapon . | . . Special Melee Weapon . | . . Unidentified Prototypes . | . . Parts Lost 7 | . 7 Power 1 | . 1 Propulsion 3 | . 3 Utility 1 | . 1 Weapon 2 | . 2 Highest Loss Streak 3 | . 3 To Critical Strikes . | . . Average Backups 11 | 1 11 Power 1 | . 1 Propulsion 3 | . 3 Utility 5 | . 6 Weapon . | . . Tool/Special . | . . Unused Backups 19 | . 19 Power 1 | . 1 Propulsion 4 | . 4 Utility 12 | . 12 Weapon 2 | . 2 Tool/Special . | . . Average Slot Usage (%) 97 | . 97 Engine 7 | . 7 Core 6 | . 6 Treads 15 | . 15 Wheel 11 | . 11 Device 13 | . 13 Storage 14 | . 14 Energy Gun 9 | . 9 Energy Cannon 1 | . 1 Ballistic Gun 15 | . 15 Peak Build Rating 12 | 6 12 Average Rating 8 | 5 9 On Entrance 3 | . 6 Avg Prop Armor Cover (%) 12 | . 12 Naked Turns . | . . Heaviest Build 51 | 13 51 Greatest Support 40 | 32 40 Greatest Overweight (x) 3 | 1 3 Average Overweight (x) 1 | . 1 Largest Inventory Capacity 20 | 8 20 Average Capacity 15 | 7 16 Most Carried 20 | 4 20 Average Carried 11 | 2 12 Final Capacity 20 | 8 20 Final Carried 19 | 4 19 Class Distribution -------------------- 100% | Mutant Dominant Class ---------------- Mutant | -10/Materials Resources | -11 -10 ----------- Run | Yrd Mat Matter Collected 742 | 270 472 Remotely . | . . Salvage Created 454 | . 454 Parts 41 | . 41 Haulers Intercepted . | . . Recyclers Shooed . | . . Parts Field Recycled . | . . Retrieved Matter . | . . Parts Self-Destructed . | . . Prevented . | . . Parts Restored . | . . Kills | -11 -10 ------- Run | Yrd Mat Combat Hostiles Destroyed 17 | . 17 Guns 14 | . 14 Cannons 2 | . 2 Classes Destroyed 4 | . 4 Worker 1 | . 1 Watcher 2 | . 2 Swarmer 12 | . 12 Grunt 5 | . 5 Best Kill Streak 4 | . 4 Combat Bots Only 4 | . 4 Max Kills in Single Turn 2 | . 2 Gunslinging . | . . Exploded . | . . Melee . | . . Uniques/NPCs Destroyed . | . . Combat | -11 -10 -------- Run | Yrd Mat Hostile Shots Fired 84 | . 84 Missed 17 | . 17 Hits 67 | . 67 Projectile 67 | . 67 Critical Strikes 1 | . 1 Damage Taken 1077 | . 1077 Core 301 | . 301 Absorbed by Shields . | . . Regen/Repaired (Parts) 46 | . 46 Core Remaining (%) 100 | 100 . Volleys Fired 47 | . 47 Largest 2 | . 2 Hottest 100 | . 100 Shots Fired 90 | . 90 Gun 84 | . 84 Cannon 4 | . 4 Launcher . | . . Special 2 | . 2 Kinetic 58 | . 58 Thermal 32 | . 32 Explosive . | . . Electromagnetic . | . . Robot Hit Streak 11 | . 11 Robot Miss Streak 4 | . 4 Penetration Max . | . . Secondary Targets 1 | . 1 Max Gunslinging Chain 1 | . 1 Shots Hit Robots 56 | . 56 Core Hits 27 | . 27 Critical Kills . | . . Critical Parts Destroyed 1 | . 1 Critical Strikes 1 | . 1 Destroy 1 | . 1 Melee Attacks . | . . Impact . | . . Slashing . | . . Piercing . | . . Sneak Attacks . | . . Combat Hostiles . | . . Follow-up Attacks . | . . Damage Inflicted 765 | . 765 Guns 727 | . 727 Cannons 36 | . 36 Explosions . | . . Melee . | . . Ramming 2 | . 2 Kinetic 386 | . 386 Thermal 377 | . 377 Explosive . | . . Electromagnetic . | . . Impact . | . . Slashing . | . . Piercing . | . . Highest Corruption . | . . Average Corruption . | . . Corruption Purged . | . . Corruption Blocked . | . . Overload Shots . | . . Overflow Damage . | . . Projectiles . | . . Explosions . | . . Melee . | . . Knockbacks . | . . Impact . | . . Kinetic . | . . Secondary . | . . Self-Inflicted Damage . | . . Shots . | . . Rammed 1 | . 1 Targets Rammed 1 | . 1 Kicked . | . . Crushed . | . . Highest Temperature 90 | . 90 Average Temperature 19 | . 19 Received Heat Transfer 252 | . 252 Siege Activations . | . . Martial Activations . | . . Shielding Activations . | . . Robots Disrupted . | . . Combat Hostiles . | . . Robots Corrupted . | . . Combat Hostiles . | . . Parts Fried . | . . Impact Corruptions . | . . Robots Melted 1 | . 1 Combat Hostiles 1 | . 1 Parts Melted 3 | . 3 Heat Transferred 888 | . 888 Parts Sabotaged . | . . Parts Stolen . | . . Parts Stripped . | . . Power Chain Reactions . | . . Alert | -11 -10 ------- Run | Yrd Mat Maximum Alert Level . | . . Low Security (%) 100 | 100 100 Level 1 . | . . Level 2 . | . . Level 3 . | . . Level 4 . | . . Level 5 . | . . High Security . | . . Max Security . | . . Peak Influence 134 | . 134 Initial . | . . Average 52 | . 55 Influence Increases 506 | . 506 Destroy 0b10 Robot/C 340 | . 340 Destroy 0b10 Robot/NC 15 | . 15 Destroy Leader 74 | . 74 Successful Hack 29 | . 29 Destroy Structure 3 | . 3 Lose Combat Pursuer 45 | . 45 Influence Decreases 480 | . 480 Time Decay 410 | . 410 Lost Part 70 | . 70 Squads Dispatched 2 | . 2 Investigation . | . . Extermination . | . . Reinforcement 2 | . 2 Assault . | . . Garrison . | . . Intercept . | . . Searches Triggered . | . . Construction Impeded . | . . Haulers Reinforced . | . . Active Scanning Responses . | . . Cargo Convoy Interrupts . | . . Stealth | -11 -10 --------- Run | Yrd Mat Distress Signals 1 | . 1 Communications Jammed . | . . Distress Signals . | . . Times Spotted 25 | . 25 Peak Tracking Total 5 | . 5 Tactical Retreats 2 | . 2 Traps | -11 -10 ------- Run | Yrd Mat Traps Triggered 3 | . 3 Indirectly . | . . Trap Hack Attempts . | . . Triggered . | . . Disarmed . | . . Reprogrammed . | . . Reused . | . . Traps Extracted . | . . Installed . | . . Triggered . | . . Machines | -11 -10 ---------- Run | Yrd Mat Machines Disabled . | . . Max in Single Turn . | . . Machines Repaired . | . . Machines Dismantled . | . . Machines Sabotaged . | . . Overloaded Fab Kills . | . . Hacking | -11 -10 --------- Run | Yrd Mat Machines Accessed 6 | . 6 Terminals 5 | . 5 Fabricators . | . . Repair Stations 1 | . 1 Recycling Units . | . . Scanalyzers . | . . Garrison Access . | . . Total Hacks 26 | . 26 Successful 19 | . 19 Failed 7 | . 7 Catastrophic 1 | . 1 Database Lockouts . | . . Manual 14 | . 14 Terminals 22 | . 22 Fabricators . | . . Repair Stations 4 | . 4 Recycling Units . | . . Scanalyzers . | . . Garrison Access . | . . Terminal Hacks 10 | . 10 Part Schematic 2 | . 2 Prototype ID Bank 3 | . 3 Terminal Index 1 | . 1 Locate Traps 1 | . 1 Maintenance Status 1 | . 1 Hauler Manifests 1 | . 1 Zone Layout 1 | . 1 Fabricator Hacks . | . . Repair Station Hacks 4 | . 4 Scan Component 2 | . 2 Repair 1 | . 1 Refit 1 | . 1 Recycling Unit Hacks . | . . Scanalyzer . | . . Garrison Access Hacks . | . . Unauthorized Hacks 5 | . 5 Terminals 5 | . 5 Botnet 5 | . 5 Fabricators . | . . Repair Stations . | . . Recycling Units . | . . Scanalyzers . | . . Garrison Access . | . . Data Cores Recovered . | . . Used . | . . Hacking Detections 6 | . 6 Full Trace Events 1 | . 1 Feedback Events . | . . Feedback Blocked . | . . Robot Schematics Acquired . | . . Robots Built . | . . Authchips . | . . Time . | . . Total Robot Build Rating . | . . Part Schematics Acquired 2 | . 2 Parts Built . | . . Authchips . | . . Time . | . . Total Part Build Rating . | . . Part Studies Acquired . | . . Parts Repaired 1 | . 1 Time 26 | . 26 Parts Recycled . | . . Recycled Matter . | . . Retrieved Matter . | . . Retrieved Components . | . . Parts Scanalyzed . | . . Part Schematics Acquired . | . . Parts Damaged . | . . Bothacking | -11 -10 ------------ Run | Yrd Mat Used RIF Installer . | . . Robots Hacked . | . . Non-combat . | . . Combat . | . . Robot Hacks Applied . | . . Relay Couplers Released . | . . Fabnet Peak Effective % . | . . Robots Rewired . | . . Allies Hacked . | . . Hacks Repelled . | . . Allies | -11 -10 -------- Run | Yrd Mat Total Allies . | . . Largest Group . | . . Highest-Rated Group . | . . Highest-Rated Ally . | . . Total Orders . | . . Ally Attacks . | . . Total Damage . | . . Kills . | . . Allies Corrupted . | . . Allies Melted . | . . Intel | -11 -10 ------- Run | Yrd Mat Active Infowar (turns) 176 | . 176 Structural 176 | . 176 Robot Analysis Total . | . . Derelict Logs Recovered . | . . Drone Launches . | . . Drone Recoveries . | . . Exploration | -11 -10 ------------- Run | Yrd Mat Turns Passed 1430 | 56 1374 Spaces Moved 809 | 44 765 Core 3 | 3 . Treads 243 | . 243 Legs . | . . Wheels 563 | 41 522 Hover . | . . Flight . | . . Fastest Speed 50 | 50 100 Average Speed 143 | 98 145 Slowest Speed 240 | 100 240 Overloaded Moves . | . . Propulsion Burnouts . | . . Robots Hopped . | . . Potential Cave-ins . | . . Cave-ins Triggered 1 | . 1 Exploration Rate (%) 49 | 3 96 Regions Visited 1 Branch Regions . Pre-discovered Areas . | . . Known Exits Taken . | . . Unknown Exits Taken 1 | 1 . Scrap Searched . | . . Spaces Dug 2 | . 2 Terrain Destroyed 2 | . 2 Melee . | . . Projectile 2 | . 2 AOE . | . . Terrain Rammed . | . . Walls Destroyed . | . . Machines Disabled . | . . Actions | -11 -10 --------- Run | Yrd Mat Total 984 | 53 931 Wait 61 | . 61 Move 808 | 43 765 Hop . | . . Pick Up 25 | 3 22 Fast Attach 11 | 6 5 Attach 3 | . 3 Detach 1 | . 1 Swap 16 | 1 15 Drop 11 | . 11 Fire 47 | . 47 Melee . | . . Ram . | . . Kick . | . . Crush 1 | . 1 Escape Stasis . | . . Rewire . | . . Trap . | . . Miscellaneous . | . . Route ------- -11/Scrapyard -10/Materials (discovered 5 exits: [*Mat x3] / [*Min x2]) History --------- Turn | Location | Event 33 | -11/Scrapyard | Discovered new exit (range 16) 57 | -11/Scrapyard | Entered Materials 128 | -10/Materials | Discovered new exit (range 16) 314 | -10/Materials | Build established: Mutant 361 | -10/Materials | Discovered new exit (range 9) 487 | -10/Materials | Discovered new exit (range 15) 657 | -10/Materials | Derelicts attacked the area 951 | -10/Materials | Core integrity fell below 50% 1067 | -10/Materials | Discovered new exit (range 16) 1222 | -10/Materials | Discovered new exit (range 13) 1236 | -10/Materials | Lost 3 parts (1p1n1w) 1287 | -10/Materials | Repaired Ion Engine 1301 | -10/Materials | Core integrity fell below 20% 1432 | -10/Materials | Crushed by falling debris 1432 | -10/Materials | Smashed by cave-in Last Messages --------------- Time: 26 >>Repair Repairing Ion Engine... ETC: 26 01287_ Repair station completes Ion Engine repairs. 01287_ Acquired Ion Engine. 01292_ S-10 Pest destroyed. 01309_ Acquired 16 matter. 01310_ Acquired 13 matter. 01314_ K-01 Serf collects debris. 01317_ U-05 Engineer builds a Door. 01318_ K-01 Serf collects debris. 01368_ Acquired 13 matter. 01432_ The unstable cave ceiling collapses. 01432_ Crushed by falling debris. 01432_ Wheel destroyed. 01432_ System corrupted by crushing effect (+5). 01432_ Mining Laser destroyed. 01432_ System corrupted by crushing effect (+2). Map ----- +----------------------------------------------------+ | """"" # ###+#######???????# " #???????? | | """"" ## ## #???????# #???????? | | """"" ##[!*## """ #???????# #???????? | | ##%= ##""""" [ #??????####+#####?????? | | ##########* !##""""" #??????# #?????? | | *!! *[%##""""" #??????# #?????? | | %!% =%[## """ #??????# #?????? | | = [!## #??????# #?????? | | ####### ####? * #??????# #?????? | | ??????# ###############??????# #?????? | | ??????# %# """ #??????????# #?????? | | ??????# # ! """"" #??????????# #?????? | | ####### # """"" #??????????# #?????? | | # =# """"" #??????????####/#####?????? | | # *%# """ #?????????????#%#?????????? | | # # !#?????????????# #?????????? | | """ # # [#?????????????# #?????????? | | """ # # ######????????# #?????????? | | """ # ####+####### ########## ##########? | | + #?# T # # # #? | | "" # #?# ###### # """ # # #? | | "T # #?# #????## ## """ + + #? | | "" # #?# #?????# ## """ # # """ #? | | #* %### ####### ## u # # """ #? | | #######% ^ # """ # ;# ### ### """ #? | | ## ^^ # "Y" #@######### #?######### | | ## """ # # # # # #?# # | | """" ## ^""" ""# # ### """ # #?# # | | """" # """ T"# """ # ## """ # #?# | # | | """" # ""# "" # ### """ # #?# # | | """" + + "" # #?# # #?# # | | """" # # # ######/#### #?# # | | """" # #### # """ # %[ ### # | | """" # #####+# """ #+###### [# = # | | # # # """ # # += " " # | | ! # + """# # # *# "R" # | | ###### # """####### # # """ # | | ?????# # """#?????#! # ######### | | ?????# # """#?????# # #??? | | ?????# # #?????# + #??? | | ?????# # """#?????# # #??? | | ?????# < # """#?????# ########### < #??? | | ?????# # """#?????# #?????????? #??? | | ?????###### """#?????# #??????????####??? | | ??????????# #?????# #????????????????? | | ??????????# [ ??????# #????????????????? | | ???????????#####??????# #????????????????? | | ??????????????????????########????????????????? | | | | | +----------------------------------------------------+ Best States ------------- Heat Dissipation 35 Energy Generation 14 Energy Capacity 250 Matter Stores 300 Matter Capacity 300 Sight Range 16 Terrain Scan Density 10 Evasion (%) 40 Recoil Reduction 2 Item Schematics ----------------- Grenade Launcher | -10/Materials | Hacked Wheel | -10/Materials | Hacked Robot Schematics ------------------ None Fabricated ------------ Nothing Repaired ---------- Ion Engine | 23% | -10/Materials Studied --------- None Alien Tech Used ----------------- None Achievements -------------- Fitting Room Challenges ------------ None Game ------ Seed ElectronPointySheargun Manual? 0 Play Time 00:15:23 Cumulative 72.7 hours Start 2026.07.07 @ 20:30:22 End 2026.07.07 @ 20:45:05 Sessions 1 Manual Loads 0 Difficulty Rogue Special Mode None Game No. 82 Rogue 82 Adventurer 0 Explorer 0 Win Type - Total 2 Types 2/0/0/0/0/0/0/0/0/0 Lore% 28 Gallery% 39 Achievement% 31 Wizard Run 0 Options --------- Layout 1 ASCII 0 Keyboard 0 Movement Mouse Keybinds 0 Fullscreen 1 Font 24/Smallcaps Map View 50x35 Zoom Use 33% Tactical HUD 1 Map Filters NONE Filters NONE Steam 1 RUN: 1503c48c-8b6c-4095-b7a8-efa12bd97827